Workbook

Sheet sheet1
L1: 西暦 | Q1: 年 | S1: 月 | U1: 日
B3: 面 談 メ モ
B4: 〔面談メモ専用メールアドレスmendan@scholarship.or.jpに当Excelファイルを添付し
B5: 提出してください。メールの件名は「面談 あなたの大学名 あなたの氏名」としてください。〕 | Z5: 入力方法 | AP5: 保管するフォルダー名 | AQ5: フォルダー名参照テーブル
C6: 大学 大学院 | I6: 研究科 | L6: 課程 | O6: 年 | Q6: 氏名 | V6: 注意：大学名、課程はプルダウンで選択してください。 | X6: =IF(ISBLANK(A6),"●大学名を入力して下さい",IF(ISBLANK(E6),"●研究科を入力してください",IF(NOT(ISNUMBER(K6)),"●学年を入力して下さい",IF(ISBLANK(O6),"●氏名を入力して下さい","OK")))) -> ●大学名を入力して下さい | Z6: 手入力 | AP6: 01 青山学院大学 | AQ6: 青山学院大学 | AR6: =SUBSTITUTE(AS6,"大学","") -> 01 青山学院 | AS6: 01 青山学院大学 | AU6: 1 | AW6: 修士
Z7: 面談メモから式で参照 | AQ7: 岩手大学 | AR7: =SUBSTITUTE(AS7,"大学","") -> 02 岩手 | AS7: 02 岩手大学 | AU7: 2 | AW7: 博士
A8: ① | B8: あなたの専門の研究テーマについて簡潔に分かりやすく記述して下さい。 | Z8: ドロップダウンメニュー | AQ8: 小樽商科大学 | AR8: 03 大阪 | AS8: 03 大阪大学 | AU8: 3 | AW8: 専門
B9: （注：以下への入力で改行する場合、Windows を使用の場合は "Alt + Enter" を、Mackintosh を使用の場合はCommand + Option + Return キーを押してください。 ） | AF9: 入力文字数 | AG9: 元の行数 | AH9: 元の高さ | AI9: 行あたり高さ | AJ9: 行あたり文字数 | AK9: あふれ文字数 | AL9: 追加行数 | AM9: 追加高さ | AN9: 結果高さ | AQ9: 香川大学 | AR9: 04 岡山 | AS9: 04 岡山大学 | AU9: 4
AF10: =LEN(B10) -> 0 | AG10: 11 | AH10: =+AI10*AG10 -> 156.75 | AI10: 14.25 | AJ10: 40 | AK10: =AF10-AJ10*AG10 -> -440 | AL10: =ROUNDUP(IF((+AK10/AJ10)<=0,0,AK10/AJ10),) -> 0 | AM10: =ROUNDUP(+AI10*AL10,) -> 0 | AN10: =+AH10+AM10+10 -> 166.75 | AQ10: 学習院大学 | AR10: 05 小樽商科 | AS10: 05 小樽商科大学 | AU10: 5
AN11: 10 | AQ11: 鹿児島大学 | AR11: 06 香川 | AS11: 06 香川大学 | AU11: 6
A12: ② | B12: １週間、曜日毎の時間の使い方について記述して下さい。 | AN12: 21 | AQ12: 金沢大学 | AR12: 07 学習院 | AS12: 07 学習院大学 | AU12: 7
AF13: =LEN(B13) -> 0 | AG13: 4 | AH13: 58.5 | AI13: 14.25 | AJ13: 40 | AK13: =AF13-AJ13*AG13 -> -160 | AL13: =ROUNDUP(IF((+AK13/AJ13)<=0,0,AK13/AJ13),) -> 0 | AM13: =ROUNDUP(+AI13*AL13,) -> 0 | AN13: =+AH13+AM13+10 -> 68.5 | AQ13: 関西大学 | AR13: 08 鹿児島 | AS13: 08 鹿児島大学 | AU13: 8
AN14: 16 | AQ14: 金沢大学 | AR14: 09 金沢 | AS14: 09 金沢大学 | AU14: 9
A15: ③ | B15: 将来の進路について。（具体的にお書き下さい。就職（業種・企業名等）、進学・留学（大学院名等）、その他） | Z15: 進路（2つまで記入） | AN15: 21 | AQ15: 九州大学 | AR15: 10 関西 | AS15: 10 関西大学 | AU15: 10
AF16: =LEN(B16) -> 0 | AG16: 3 | AH16: =+AI16*AG16 -> 42.75 | AI16: 14.25 | AJ16: 40 | AK16: =AF16-AJ16*AG16 -> -120 | AL16: =ROUNDUP(IF((+AK16/AJ16)<=0,0,AK16/AJ16),) -> 0 | AM16: =ROUNDUP(+AI16*AL16,) -> 0 | AN16: =+AH16+AM16+10 -> 52.75 | AQ16: 慶應義塾大学 | AR16: 11 関西学院 | AS16: 11 関西学院大学 | AU16: 11
AN17: 14.25 | AQ17: 工学院大学 | AR17: 12 九州 | AS17: 12 九州大学 | AU17: 12
AN18: 10 | AQ18: 神戸大学 | AR18: 13 京都 | AS18: 13 京都大学 | AU18: 13
A19: ④ | B19: あなたの座右の銘・生活信条について記述して下さい。 | Z19: 座右の銘 | AN19: 21 | AQ19: 国際大学 | AR19: 14 慶應義塾 | AS19: 14 慶應義塾大学 | AU19: 14
AF20: =LEN(B20) -> 0 | AG20: 3 | AH20: =+AI20*AG20 -> 42.75 | AI20: 14.25 | AJ20: 40 | AK20: =AF20-AJ20*AG20 -> -120 | AL20: =ROUNDUP(IF((+AK20/AJ20)<=0,0,AK20/AJ20),) -> 0 | AM20: =ROUNDUP(+AI20*AL20,) -> 0 | AN20: =+AH20+AM20+10 -> 52.75 | AQ20: 国際基督教大学 | AR20: 15 工学院 | AS20: 15 工学院大学 | AU20: 15
AN21: 16 | AQ21: 静岡大学 | AR21: 16 神戸 | AS21: 16 神戸大学 | AU21: 16
A22: ⑤ | B22: 何かアルバイトをしていますか。 （複数ある場合、職種は全てを、回数、時間、月収は合計を記載して下さい。） | AN22: 32.25 | AQ22: 上智大学 | AR22: 17 国際 | AS22: 17 国際大学 | AU22: 17
A23: アルバイト職種： | Z23: アルバイト職種 | AA23: 週回数 | AB23: 週時間 | AC23: 月収 | AF23: =LEN(B23) -> 0 | AN23: 23.25 | AQ23: 信州大学 | AR23: 18 国際基督教 | AS23: 18 国際基督教大学 | AU23: 18
A24: 一週間での回数： | F24: 一週あたりの時間： | M24: 平均的な月収： | T24: （万円） | Z24: （複数回答可） | AA24: （複数の場合は合計） | AF24: =LEN(B24) -> 0 | AN24: 23.25 | AQ24: 成蹊大学 | AR24: 19 静岡 | AS24: 19 静岡大学 | AU24: 19 | AX24: 1.塾講師 | AY24: 2.家庭教師 | AZ24: 3.飲食店員 | BA24: 4.店員 | BB24: 5.TA | BC24: 6.その他 | BD24: 7.なし
AA25: =+D24 -> 0 | AB25: =+K24 -> 0 | AC25: =+R24 -> 0 | AN25: 23.25 | AQ25: 西南学院大学 | AR25: 20 上智 | AS25: 20 上智大学 | AU25: 20 | AX25: =$Z$25&" "&AX24 -> 1.塾講師 | AY25: =$Z$25&" "&AY24 -> 2.家庭教師 | AZ25: 3.飲食店員 | BA25: 4.店員 | BB25: 5.TA | BC25: 6.その他 | BD25: 7.なし
AQ26: 創価大学 | AR26: 21 信州 | AS26: 21 信州大学 | AU26: 21
AQ27: 千葉大学 | AR27: 22 成蹊 | AS27: 22 成蹊大学 | AU27: 22
AQ28: 中央大学 | AR28: 23 西南学院 | AS28: 23 西南学院大学 | AU28: 23
AN29: 16 | AQ29: 筑波大学 | AR29: 24 創価 | AS29: 24 創価大学 | AU29: 24
A30: ⑥ | B30: 経済状況について記述して下さい。（主な収入源、収入と支出のバランスなど） | AN30: 21 | AQ30: 東京大学 | AR30: 25 千葉 | AS30: 25 千葉大学 | AU30: 25
AF31: =LEN(B31) -> 0 | AG31: 3 | AH31: =+AI31*AG31 -> 42.75 | AI31: 14.25 | AJ31: 40 | AK31: =AF31-AJ31*AG31 -> -120 | AL31: =ROUNDUP(IF((+AK31/AJ31)<=0,0,AK31/AJ31),) -> 0 | AM31: =ROUNDUP(+AI31*AL31,) -> 0 | AN31: =+AH31+AM31+10 -> 52.75 | AQ31: 東京外国語大学 | AR31: 26 中央 | AS31: 26 中央大学 | AU31: 26
AN32: 10 | AQ32: 東京工業大学 | AR32: 27 筑波 | AS32: 27 筑波大学 | AU32: 27
A33: ⑦ | B33: 併給している奨学金、学費免除があれば、すべて記入してください。 | AN33: 21 | AQ33: 東京理科大学 | AR33: 28 東京 | AS33: 28 東京大学 | AU33: 28
B34: 奨学金名称 | N34: 貸与/給付 | R34: 金額（万円/年） | AN34: 21 | AQ34: 同志社大学 | AR34: 29 東京外国語 | AS34: 29 東京外国語大学 | AU34: 29
V35: 奨学金名称、貸与/給付はプルダウンメニューから選択。奨学金名称はメニュー以外に手入力も可。 | AN35: 18 | AQ35: 東北大学 | AR35: 30 東京工業 | AS35: 30 東京工業大学 | AU35: 30
AN36: 18 | AQ36: 獨協大学 | AR36: 31 東京理科 | AS36: 31 東京理科大学 | AU36: 31 | AX36: 日本学生支援機構１種 | AY36: 日本学生支援機構２種 | AZ36: 学費免除（前期） | BA36: 学費免除（後期）
AN37: 18 | AQ37: 名古屋大学 | AR37: 32 同志社 | AS37: 32 同志社大学 | AU37: 32 | AX37: 貸与 | AY37: 給付
AN38: 18 | AQ38: 南山大学 | AR38: 33 東北 | AS38: 33 東北大学 | AU38: 33
AN39: 18 | AQ39: 一橋大学 | AR39: 34 獨協 | AS39: 34 獨協大学 | AU39: 34
AN40: 18 | AQ40: 広島大学 | AR40: 35 長崎 | AS40: 35 長崎大学 | AU40: 35
AN41: 5 | AQ41: 福島大学 | AR41: 36 名古屋 | AS41: 36 名古屋大学 | AU41: 36
AN42: 5 | AQ42: 法政大学 | AR42: 37 南山 | AS42: 37 南山大学 | AU42: 37
A43: ⑧ | B43: 三菱UFJ信託銀行についてご存知の事を記載して下さい。 | Z43: MUTBについて？ | AN43: 21 | AQ43: 北海道大学 | AR43: 38 一橋 | AS43: 38 一橋大学 | AU43: 38
V44: 全く知らない場合は同行のHPなどをご覧ください。 | AF44: =LEN(B44) -> 0 | AG44: 3 | AH44: =+AI44*AG44 -> 42.75 | AI44: 14.25 | AJ44: 40 | AK44: =AF44-AJ44*AG44 -> -120 | AL44: =ROUNDUP(IF((+AK44/AJ44)<=0,0,AK44/AJ44),) -> 0 | AM44: =ROUNDUP(+AI44*AL44,) -> 0 | AN44: =+AH44+AM44+10 -> 52.75 | AQ44: 明治大学 | AR44: 39 広島 | AS44: 39 広島大学 | AU44: 39 | AX44: 0.無回答 | AY44: 1.BOTMと誤認 | AZ44: 2.少し知っている | BA44: 3.知っている | BB44: 4.よく知っている
AN45: 14.25 | AQ45: 山梨大学 | AR45: 40 福島 | AS45: 40 福島大学 | AU45: 40
A46: ⑨ | B46: 最近、気になるニュースは何ですか。それはなぜですか。 | Z46: 気になるニュース？ | AN46: 21 | AQ46: 横浜国立大学 | AR46: 41 法政 | AS46: 41 法政大学 | AU46: 41
AF47: =LEN(B47) -> 0 | AG47: 3 | AH47: =+AI47*AG47 -> 42.75 | AI47: 14.25 | AJ47: 40 | AK47: =AF47-AJ47*AG47 -> -120 | AL47: =ROUNDUP(IF((+AK47/AJ47)<=0,0,AK47/AJ47),) -> 0 | AM47: =ROUNDUP(+AI47*AL47,) -> 0 | AN47: =+AH47+AM47+10 -> 52.75 | AQ47: 立教大学 | AR47: 42 北海道 | AS47: 42 北海道大学 | AU47: 42 | AX47: 1.政治 | AY47: 2.経済 | AZ47: 3.社会 | BA47: 4.安全保障 | BB47: 5.大阪都構想 | BC47: 6.自然災害 | BD47: 7 | BE47: 8. | BF47: 9 | BG47: 10.その他
AN48: 10 | AQ48: 立命館大学 | AR48: 43 明治 | AS48: 43 明治大学 | AU48: 43
A49: ⑩ | B49: 趣味・余暇などについてお書きください。 | AN49: 21 | AQ49: 早稲田大学 | AR49: 44 山梨 | AS49: 44 山梨大学 | AU49: 44
AF50: =LEN(B50) -> 0 | AG50: 3 | AH50: =+AI50*AG50 -> 42.75 | AI50: 14.25 | AJ50: 40 | AK50: =AF50-AJ50*AG50 -> -120 | AL50: =ROUNDUP(IF((+AK50/AJ50)<=0,0,AK50/AJ50),) -> 0 | AM50: =ROUNDUP(+AI50*AL50,) -> 0 | AN50: =+AH50+AM50+10 -> 52.75 | AR50: 45 横浜国立 | AS50: 45 横浜国立大学 | AU50: 45
AN51: 10 | AR51: 46 立教 | AS51: 46 立教大学 | AU51: 46
A52: ⑪ | B52: 近況又は意見、抱負等ご自由にお書き下さい。 | AN52: 21 | AR52: 47 立命館 | AS52: 47 立命館大学 | AU52: 47
AF53: =LEN(B53) -> 0 | AG53: 20 | AH53: 160 | AI53: 14.25 | AJ53: 40 | AK53: =AF53-AJ53*AG53 -> -800 | AL53: =ROUNDUP(IF((+AK53/AJ53)<=0,0,AK53/AJ53),) -> 0 | AM53: =ROUNDUP(+AI53*AL53,) -> 0 | AN53: =+AH53+AM53+10 -> 170 | AR53: 48 早稲田 | AS53: 48 早稲田大学 | AU53: 48
AN54: 10
A55: ⑫ | B55: 何か質問や相談したいことがあればお書き下さい。 | AN55: 21
AF56: =LEN(B56) -> 0 | AG56: 9 | AH56: 42.75 | AI56: 14.25 | AJ56: 40 | AK56: =AF56-AJ56*AG56 -> -360 | AL56: =ROUNDUP(IF((+AK56/AJ56)<=0,0,AK56/AJ56),) -> 0 | AM56: =ROUNDUP(+AI56*AL56,) -> 0 | AN56: =+AH56+AM56+10 -> 52.75
T57: 以上 | AN57: 18
B60: SMILE入力文
B61: ="卒業後は"&B16&"を希望。"& +IF(OR(D23=0,D23=""),"アルバイトなし。","アルバイトは"&D23&"。週"&D24&"回、一回"&K24&"時間、月収"&R57&"万円。")& "面談メモの自由意見は「"&B53&"」" -> 卒業後はを希望。アルバイトなし。面談メモの自由意見は「」

Sheet システム管理 (hidden)
A1: ディレクトリ名： （事前に手作成しておく） | B1: \\Ridoc-srv\マイドキュメント\１１．面談\面談2024\面談資料 大学別(2024)
A2: 大学フォルダ名： | B2: =+sheet1!A6&"大学" -> 大学
A3: . | B3: =sheet1!A6&"大学"&" 面談メモ（2024)" -> 大学 面談メモ（2024) | C3: 保存するEXCELファイル名は大学の後に”面談メモ（H29)を連結した名前。年度により更新する。
A4: シート名 | B4: =+sheet1!R6 -> 0 | C4: シート名は氏名

Sheet システム管理2 (hidden)
A1: ディレクトリ名： （事前に手作成しておく） | B1: \\Ridoc-srv\マイドキュメント\１１．面談\面談2024 | I1: 大学 | J1: 学部 | K1: 学年 | L1: 氏名 | M1: 部活・サークル | N1: 部活・サークル分類 | O1: 座右の銘・生活信条 | P1: 進路志望1 | Q1: 進路志望2 | R1: 留学希望 | S1: 進学希望 | T1: 取得希望資格1 | U1: 取得希望資格2 | V1: MUTB | W1: 奨学金使途 | X1: 気になるニュース | Y1: アルバイト | Z1: アルバイト週回数 | AA1: アルバイト週時間 | AB1: アルバイト月収（万円/月） | AC1: 留学希望国 | AD1: 併給奨学金名１ | AE1: 併給貸与給付1 | AF1: 併給奨学金金額1 | AG1: 併給奨学金名2 | AH1: 併給貸与給付2 | AI1: 併給金額2 | AJ1: 併給奨学金名3 | AK1: 併給貸与給付3 | AL1: 併給金額3 | AM1: 併給奨学金名4 | AN1: 併給貸与給付4 | AO1: 併給金額4 | AP1: 併給奨学金名5 | AQ1: 併給貸与給付5 | AR1: 併給金額5
A2: EXCELファイル名： | B2: ★面談メモデータ2024 | H2: 書き込みデータ | I2: =+sheet1!A6 -> 0 | J2: =+sheet1!E6 -> 0 | K2: =+sheet1!K6&+sheet1!N6 ->  | L2: =+sheet1!R6 -> 0 | O2: =+sheet1!Z20 -> 0 | P2: =+sheet1!Z16 -> 0 | Q2: =+sheet1!AA16 -> 0 | V2: =+sheet1!Z44 -> 0 | X2: =sheet1!Z47 & " "&sheet1!AA47 ->  | Y2: =+sheet1!Z25 -> 0 | Z2: =+sheet1!AA25 -> 0 | AA2: =+sheet1!K24 -> 0 | AB2: =+sheet1!R24 -> 0 | AD2: =+sheet1!B36 -> 0 | AE2: =+sheet1!N36 -> 0 | AF2: =+sheet1!R36 -> 0 | AG2: =+sheet1!B37 -> 0 | AH2: =+sheet1!N37 -> 0 | AI2: =+sheet1!R37 -> 0 | AJ2: =+sheet1!B38 -> 0 | AK2: =+sheet1!N38 -> 0 | AL2: =+sheet1!R38 -> 0 | AM2: =+sheet1!B39 -> 0 | AN2: =+sheet1!N39 -> 0 | AO2: =+sheet1!R39 -> 0 | AP2: =+sheet1!B40 -> 0 | AQ2: =+sheet1!N40 -> 0 | AR2: =+sheet1!R40 -> 0
I4: 書き込み対象データ | K4: データなし（学部生のみデータ）
